Cogmind - Beta 12 @@@ ROGUE MODE // 2023.08.01 @ 14:52:37 Player: mintimati Result: Smashed by cave-in Performance ------------- Evolutions (0) 0 Regions Visited (2) 400 Robots Destroyed (22) 110 Value Destroyed (391) 391 Prototype IDs (0) 0 Alien Tech Used (0) 0 Bonus (0) 0 TOTAL SCORE: 901 Bonus ------- None Cogmind --------- Core Integrity 0/250 Matter 10/300 Energy 99/100 System Corruption 30% Temperature Cool (0) Movement Core (200) Ox3 Location -10/Mines Parts ------- > --- POWER (1) -------- (None) > --- PROPULSION (2) --- (None) > --- UTILITY (2) ------ Medium Storage Unit > --- WEAPON (2) ------- (None) > --- INVENTORY (10) --- Light Ion Engine Light Treads Light Treads Improved Heat Sink Visual Processing Unit Signal Interpreter ECM Suite Light Cannon Peak State ------------ > --- POWER ------------ Light Nuclear Core > --- PROPULSION ------- Light Treads Light Treads > --- UTILITY ---------- Small Storage Unit Seismic Detector > --- WEAPON ----------- Assault Rifle Light Assault Rifle > --- INVENTORY -------- Light Ion Engine Improved Heat Sink Visual Processing Unit Signal Interpreter Small Laser Grenade Launcher Mining Claw [Rating: 10] Favorites ----------- Power Light Nuclear Core Engine Light Ion Engine Power Core Light Nuclear Core Propulsion Light Treads Treads Light Treads Wheel Wheel Utility Medium Storage Unit Device Seismic Detector Storage Medium Storage Unit Weapon Grenade Launcher Ballistic Gun Assault Rifle Ballistic Cannon Light Cannon Launcher Grenade Launcher Slashing Weapon Mining Claw Build | -11 -10 -10 ------- Run | Jun Mat Min Slots Evolved . | . . . Power . | . . . Propulsion . | . . . Utility . | . . . Weapon . | . . . Parts Attached 21 | 7 5 9 Power 3 | 1 1 1 Engine 2 | 1 . 1 Core 1 | . 1 . Reactor . | . . . Propulsion 4 | 2 . 2 Treads 2 | 2 . . Leg . | . . . Wheel 2 | . . 2 Hover . | . . . Flight . | . . . Utility 4 | 2 1 1 Device 2 | 1 . 1 Storage 2 | 1 1 . Processor . | . . . Hackware . | . . . Protection . | . . . Artifact . | . . . Weapon 10 | 2 3 5 Energy Gun . | . . . Energy Cannon . | . . . Ballistic Gun 2 | 2 . . Ballistic Cannon 2 | . 1 1 Launcher 3 | . 1 2 Special Weapon . | . . . Impact Weapon . | . . . Slashing Weapon 3 | . 1 2 Piercing Weapon . | . . . Special Melee Weapon . | . . . Unidentified Prototypes . | . . . Parts Lost 7 | . . 7 Power 2 | . . 2 Propulsion 2 | . . 2 Utility 1 | . . 1 Weapon 2 | . . 2 Highest Loss Streak 3 | . . 3 To Critical Strikes . | . . . Average Slot Usage (%) 78 | . 100 62 Engine 1 | . 1 2 Core 7 | . 12 3 Treads 16 | . 28 7 Wheel 6 | . . 11 Device 8 | . 14 4 Storage 14 | . 14 14 Ballistic Gun 1 | . 4 . Ballistic Cannon 4 | . 2 5 Launcher 10 | . 11 9 Slashing Weapon 6 | . 9 4 Naked Turns . | . . . Heaviest Build 22 | 12 22 22 Greatest Support 40 | 40 40 40 Greatest Overweight (x) 3 | . . 3 Average Overweight (x) . | . . . Largest Inventory Capacity 10 | 8 10 10 Average Capacity 9 | 7 9 10 Most Carried 10 | 5 10 10 Average Carried 7 | . 7 8 Final Capacity 10 | 8 10 10 Final Carried 8 | . 8 8 Class Distribution -------------------- 100% | Mutant Dominant Class ---------------- Mutant | -10/Materials Mutant | -10/Mines Resources | -11 -10 -10 ----------- Run | Jun Mat Min Matter Collected 496 | 338 122 36 Remotely . | . . . Salvage Created 385 | 135 191 59 Parts 45 | 10 29 6 Haulers Intercepted . | . . . Recyclers Shooed 1 | . . 1 Parts Field Recycled . | . . . Retrieved Matter . | . . . Parts Self-Destructed . | . . . Prevented . | . . . Kills | -11 -10 -10 ------- Run | Jun Mat Min Combat Hostiles Destroyed 7 | . 2 5 Guns 2 | . 2 . Cannons 1 | . . 1 AOE 4 | . . 4 Classes Destroyed 7 | 3 3 1 Worker 6 | 2 3 1 Builder 3 | . 2 1 Tunneler 2 | 2 . . Recycler 1 | 1 . . Watcher 3 | . 3 . Swarmer 3 | . . 3 Grunt 4 | . 2 2 Best Kill Streak 3 | 2 3 3 Combat Bots Only 3 | . 2 3 Max Kills in Single Turn 2 | 1 1 2 Gunslinging . | . . . Exploded 2 | . . 2 Melee . | . . . Uniques/NPCs Destroyed . | . . . Combat | -11 -10 -10 -------- Run | Jun Mat Min Damage Taken 1150 | . 177 973 Core 279 | . 36 243 Absorbed by Shields . | . . . Core Remaining (%) 100 | 100 . . Volleys Fired 52 | 19 14 19 Largest 2 | 2 2 2 Hottest 65 | 40 65 65 Shots Fired 81 | 30 26 25 Gun 48 | 30 18 . Cannon 8 | . 2 6 Launcher 25 | . 6 19 Special . | . . . Kinetic 56 | 30 20 6 Thermal . | . . . Explosive 25 | . 6 19 Electromagnetic . | . . . Robot Hit Streak 6 | 3 6 4 Robot Miss Streak 3 | 2 2 3 Penetration Max . | . . . Secondary Targets . | . . . Shots Hit Robots 44 | 17 19 8 Core Hits 38 | 7 15 16 Critical Kills . | . . . Critical Parts Destroyed . | . . . Critical Strikes . | . . . Melee Attacks 128 | . 45 83 Impact . | . . . Slashing 128 | . 45 83 Piercing . | . . . Sneak Attacks 6 | . 4 2 Combat Hostiles . | . . . Follow-up Attacks . | . . . Damage Inflicted 1449 | 204 562 683 Guns 319 | 204 115 . Cannons 97 | . 31 66 Explosions 667 | . 181 486 Melee 327 | . 235 92 Ramming 39 | . . 39 Kinetic 416 | 204 146 66 Thermal . | . . . Explosive 667 | . 181 486 Electromagnetic . | . . . Impact . | . . . Slashing 327 | . 235 92 Piercing . | . . . Highest Corruption 30 | . 2 30 Average Corruption 8 | . 2 12 Corruption Purged . | . . . Corruption Blocked . | . . . Effects 51 | . 11 40 Message Errors 16 | . 3 13 Matter Fused 8 | . 4 4 Heat Flow Errors 7 | . . 7 Energy Discharges 9 | . 1 8 Parts Rejected 1 | . . 1 Data Loss (minor) 4 | . 1 3 Data Loss (major) 4 | . 1 3 Misfires 1 | . 1 . Alerts 1 | . . 1 Overload Shots . | . . . Overflow Damage 76 | . 17 59 Projectiles . | . . . Explosions 55 | . 4 51 Melee 21 | . 13 8 Knockbacks 1 | . . 1 Impact . | . . . Kinetic 1 | . . 1 Secondary . | . . . Self-Inflicted Damage 167 | . . 167 Shots 6 | . . 6 Rammed . | . . . Targets Rammed . | . . . Kicked . | . . . Crushed . | . . . Highest Temperature 242 | . 18 242 Average Temperature 53 | . 8 66 Received Heat Transfer 171 | . 105 66 Siege Activations . | . . . Robots Corrupted . | . . . Combat Hostiles . | . . . Parts Fried . | . . . Impact Corruptions . | . . . Robots Melted . | . . . Combat Hostiles . | . . . Parts Melted . | . . . Heat Transferred . | . . . Parts Sabotaged . | . . . Parts Stolen . | . . . Parts Stripped . | . . . Power Chain Reactions . | . . . Missiles Intercepted . | . . . Alert | -11 -10 -10 ------- Run | Jun Mat Min Peak Influence 267 | 25 153 267 Initial 28 | . 16 28 Average 50 | 12 45 60 Maximum Alert Level 1 | . . 1 Low Security (%) 99 | 100 100 98 Level 1 . | . . 1 Level 2 . | . . . Level 3 . | . . . Level 4 . | . . . Level 5 . | . . . High Security . | . . . Max Security . | . . . Squads Dispatched . | . . . Investigation . | . . . Extermination . | . . . Reinforcement . | . . . Assault . | . . . Garrison . | . . . Intercept . | . . . Searches Triggered . | . . . Construction Impeded . | . . . Haulers Reinforced . | . . . Active Scanning Responses . | . . . Cargo Convoy Interrupts . | . . . Stealth | -11 -10 -10 --------- Run | Jun Mat Min Distress Signals . | . . . Communications Jammed . | . . . Distress Signals . | . . . Times Spotted 10 | . 5 5 Peak Tracking Total 3 | . 2 3 Tactical Retreats . | . . . Traps | -11 -10 -10 ------- Run | Jun Mat Min Traps Triggered 1 | . 1 . Indirectly . | . . . Trap Hack Attempts . | . . . Triggered . | . . . Disarmed 5 | . 5 . Reprogrammed . | . . . Reused . | . . . Traps Extracted . | . . . Installed . | . . . Triggered . | . . . Machines | -11 -10 -10 ---------- Run | Jun Mat Min Machines Disabled 11 | . 6 5 Max in Single Turn 3 | . 2 3 Machines Repaired . | . . . Machines Sabotaged . | . . . Overloaded Fab Kills . | . . . Hacking | -11 -10 -10 --------- Run | Jun Mat Min Machines Accessed 6 | . 6 . Terminals 3 | . 3 . Fabricators . | . . . Repair Stations 1 | . 1 . Recycling Units 2 | . 2 . Scanalyzers . | . . . Garrison Access . | . . . Total Hacks 22 | . 22 . Successful 13 | . 13 . Failed 9 | . 9 . Catastrophic . | . . . Database Lockouts . | . . . Manual 4 | . 4 . Terminals 7 | . 7 . Fabricators . | . . . Repair Stations 3 | . 3 . Recycling Units 12 | . 12 . Scanalyzers . | . . . Garrison Access . | . . . Terminal Hacks 4 | . 4 . Locate Traps 1 | . 1 . Disarm Traps 1 | . 1 . Dispatch Records 1 | . 1 . Hauler Manifests 1 | . 1 . Fabricator Hacks . | . . . Repair Station Hacks 1 | . 1 . Scan Component 1 | . 1 . Recycling Unit Hacks 8 | . 8 . Process 4 | . 4 . Retrieve Matter 2 | . 2 . Retrieve Components 2 | . 2 . Scanalyzer . | . . . Garrison Access Hacks . | . . . Unauthorized Hacks . | . . . Terminals . | . . . Fabricators . | . . . Repair Stations . | . . . Recycling Units . | . . . Scanalyzers . | . . . Garrison Access . | . . . Data Cores Recovered . | . . . Used . | . . . Hacking Detections 6 | . 6 . Full Trace Events 1 | . 1 . Feedback Events . | . . . Feedback Blocked . | . . . Robot Schematics Acquired . | . . . Robots Built . | . . . Authchips . | . . . Time . | . . . Total Robot Build Rating . | . . . Part Schematics Acquired . | . . . Parts Built . | . . . Authchips . | . . . Time . | . . . Total Part Build Rating . | . . . Parts Repaired . | . . . Time . | . . . Parts Recycled . | . . . Recycled Matter 297 | . 297 . Retrieved Matter 46 | . 46 . Retrieved Components . | . . . Parts Scanalyzed . | . . . Part Schematics Acquired . | . . . Parts Damaged . | . . . Bothacking | -11 -10 -10 ------------ Run | Jun Mat Min Used RIF Installer . | . . . Robots Hacked . | . . . Non-combat . | . . . Combat . | . . . Robot Hacks Applied . | . . . Relay Couplers Released . | . . . Fabnet Peak Effective % . | . . . Robots Rewired . | . . . Allies Hacked . | . . . Hacks Repelled . | . . . Allies | -11 -10 -10 -------- Run | Jun Mat Min Total Allies . | . . . Largest Group . | . . . Highest-Rated Group . | . . . Highest-Rated Ally . | . . . Total Orders . | . . . Ally Attacks . | . . . Total Damage . | . . . Kills . | . . . Allies Corrupted . | . . . Allies Melted . | . . . Intel | -11 -10 -10 ------- Run | Jun Mat Min Robot Analysis Total . | . . . Derelict Logs Recovered . | . . . Drone Launches . | . . . Drone Recoveries . | . . . Exploration | -11 -10 -10 ------------- Run | Jun Mat Min Turns Passed 2773 | 223 1071 1479 Spaces Moved 805 | 120 491 194 Core 32 | 28 . 4 Treads 695 | 92 491 112 Legs . | . . . Wheels 78 | . . 78 Hover . | . . . Flight . | . . . Fastest Speed 50 | 50 160 80 Average Speed 149 | 134 160 130 Slowest Speed 200 | 160 160 200 Overloaded Moves . | . . . Propulsion Burnouts . | . . . Robots Hopped . | . . . Cave-ins Triggered 5 | . . 5 Exploration Rate (%) 40 | 5 71 44 Regions Visited 2 Branch Regions 1 Pre-discovered Areas . | . . . Known Exits Taken . | . . . Unknown Exits Taken 2 | 1 1 . Scrap Searched . | . . . Spaces Dug 124 | . 20 104 Terrain Destroyed 189 | . 20 169 Melee 94 | . 20 74 Projectile . | . . . AOE 95 | . . 95 Terrain Rammed 7 | . . 7 Walls Destroyed . | . . . Machines Disabled . | . . . Actions | -11 -10 -10 --------- Run | Jun Mat Min Total 2042 | 156 663 1223 Wait 1001 | . 91 910 Move 799 | 119 490 190 Hop . | . . . Pick Up 24 | 9 13 2 Fast Attach . | . . . Attach 9 | 7 . 2 Detach . | . . . Swap 12 | . 5 7 Drop 7 | 2 5 . Fire 52 | 19 14 19 Melee 128 | . 45 83 Ram 7 | . . 7 Kick . | . . . Crush . | . . . Escape Stasis 3 | . . 3 Rewire . | . . . Trap . | . . . Miscellaneous . | . . . Route ------- -11/Junkyard -10/Materials (discovered 3 exits: [*Mat x2] / [*Min]) -10/Mines History --------- Turn | Location | Event 7 | -11/Junkyard | Discovered new exit (range 15) 224 | -11/Junkyard | Entered Materials 301 | -10/Materials | Build established: Mutant 549 | -10/Materials | Discovered new exit (range 14) 921 | -10/Materials | Discovered new exit (range 4) 1251 | -10/Materials | Discovered new exit (range 15) 1295 | -10/Materials | Entered Mines 1723 | -10/Mines | Excavation squad dispatched 1723 | -10/Mines | A large section of the Mines collapsed 1815 | -10/Mines | Crushed by falling debris 1815 | -10/Mines | Core integrity fell below 50% 1816 | -10/Mines | System corruption reached 10% 1846 | -10/Mines | Lost 3 parts (1n1u1w) 1973 | -10/Mines | Excavation squad dispatched 2215 | -10/Mines | Crushed by falling debris 2216 | -10/Mines | Core integrity fell below 20% 2223 | -10/Mines | Excavation squad dispatched 2473 | -10/Mines | Excavation squad dispatched 2542 | -10/Mines | Crushed by falling debris 2723 | -10/Mines | Excavation squad dispatched 2763 | -10/Mines | Crushed by falling debris 2771 | -10/Mines | System corruption reached 30% 2774 | -10/Mines | Crushed by falling debris 2774 | -10/Mines | Smashed by cave-in Last Messages --------------- 02557_ U7UMLREA1XO:P8 DJK6N2# 02588_ O/KXKYGPLKSG7%MKY8VN6Z#6NW8E7I 02604_ System corrupted: Heat flow error (+170). 02625_ System corrupted: FCS attempts to trigger Grenade Launcher. 02657_ J4RHQYR33OQX>5SGWW/JWVJZS 02714_ System corrupted: Component data lost. 02723_ ALERT: Derelict activity in mines confirmed. Dispatching additional escorted excavation squad. 02756_ System corrupted: FCS attempts to trigger Grenade Launcher. 02763_ The unstable cave ceiling collapses. 02763_ Crushed by falling debris. 02763_ Wheel destroyed. 02763_ System corrupted by crushing effect (+5). 02763_ Grenade Launcher destroyed. 02763_ System corrupted by crushing effect (+5). 02770_ Slammed into Earth. 02770_ Destabilizing: System corrupted (+2). 02772_ Slammed into Earth. 02774_ The unstable cave ceiling collapses. 02774_ Crushed by falling debris. Map ----- +----------------------------------------------------+ | | | | | | | | | | | | | | | | | | | | | | | | | | | | | | | | | | | | | | | | | ???????????????????????????### ################### | | ??????????????????????????## ### # # # # | | ?????????????????????????## # # ################# | | ????????????????????????## ### # #?????????????### | | ????????????????????????# # # ######?????????# | | ????????????????????????#@#### #### ##???????# | | ????????????????????????# ## #### #???????## # | | ????????????????????????### ###?# #??????????? | | ????????????????????????#####??## ##?????????? | | ??????????????????????????????## ###???????? | | ??????????????????????????????# ######??? | | ??????????????????????????????# ## " ##??? | | ??????????????????????????????# #"## #####??? | | ????????????????????????####### ##### ##?# #??? | | ????????????????????????## # #??## ##??###??? | | ????????????????????????# ##### #?## #?###"#### | | ????????????????????????# #???# #?# ## ! # | | ????????????????????????# #???# #?# ## | | ?????????????????????#??###???# #?## | | ?????????????????????# ##"#???# #??### * | | ?????????????????????# ##### #????## = | | ?????????????????????#### ## #?????# | | ???????????????????????## "# ## #?????# # | | ???????????????????????# "# #?????## ## | | ?????????????????????# ## #??????# ## ##? | | ?????????????????????# ###### ########## #?? | | ?????????????????????## ?????# "# #?# #?? | | ??????????????????????# ?????# ###### #?### ##?? | | ??????????????????????# ???? ????# #???###???? | | ??????????????????????# ??? ????# #?????????? | +----------------------------------------------------+ Best States ------------- Heat Dissipation 25 Energy Generation 14 Energy Capacity 160 Matter Stores 300 Matter Capacity 300 Sight Range 16 Robot Scan Range 14 Terrain Scan Density 10 Evasion (%) 44 Recoil Reduction 2 Item Schematics ----------------- None Robot Schematics ------------------ None Fabricated ------------ Nothing Alien Tech Used ----------------- None Achievements -------------- Part-time Excavator Shopping List Challenges ------------ None Game ------ Seed MyomerArmageddonPrototype Manual? 0 Play Time 00:16:07 Cumulative 4.5 hours Start 2023.08.01 @ 14:38:21 End 2023.08.01 @ 14:52:37 Sessions 1 Manual Loads 0 Difficulty Rogue Special Mode None Game No. 6 Rogue 6 Adventurer 0 Explorer 0 Win Type - Total 0 Types 0/0/0/0/0/0/0/0/0 Lore% 2 Gallery% 10 Achievement% 12 Wizard Run 0 Options --------- ASCII 0 Keyboard 1 Movement Numpad Keybinds 0 Fullscreen 1 Font 18/X11 Map View 76x50 Tactical HUD 1 Map Filters NONE Filters NONE Steam 1 RUN: 5eebda9c-ad23-408f-a7f2-9fbcd777490c